bitfinex-derivatives/quotes_BTCF0:USTF0_20250416
["timestamp","ask_amount","ask_price","bid_price","bid_amount"]
[1744762511905,0.0428,83372.0,83371.0,0.2449553]
[1744762512100,0.0428,83372.0,83371.0,0.2088553]
[1744762512304,0.0428,83372.0,83371.0,0.2089353]
[1744762512703,0.00017987,83379.0,83378.0,0.1199453]
[1744762512906,0.0371,83380.0,83379.0,0.1199438]
[1744762513214,0.0371,83380.0,83379.0,0.1299438]
[1744762513411,0.0371,83380.0,83379.0,0.2065438]
[1744762513911,0.01229344,83397.0,83395.0,0.1199208]
[1744762514311,0.1632194,83396.0,83395.0,0.1199208]
[1744762514703,0.0433,83396.0,83395.0,0.1199208]
[1744762515304,0.0822,83396.0,83395.0,0.1199208]
[1744762516013,0.2051194,83396.0,83395.0,0.1199208]
[1744762516211,0.2081194,83396.0,83395.0,0.1199208]
[1744762516908,0.2051194,83396.0,83395.0,0.1199208]
[1744762517106,0.2081194,83396.0,83395.0,0.1199208]
[1744762518211,0.2091194,83396.0,83395.0,0.1199208]
[1744762518415,0.0892,83396.0,83395.0,0.1199208]
[1744762519313,0.0892,83396.0,83395.0,0.1580208]
[1744762519501,0.0509,83396.0,83395.0,0.1580208]
[1744762519899,0.0509,83396.0,83395.0,0.1944208]
[1744762520715,0.0509,83396.0,83395.0,0.1580208]
[1744762521213,0.00017987,83404.0,83403.0,0.1199093]
[1744762521415,0.00017987,83404.0,83403.0,0.5176093]
[1744762522211,0.03797987,83404.0,83403.0,0.5176093]
[1744762522405,0.16188777,83404.0,83403.0,0.5176093]
[1744762522604,0.08547987,83404.0,83403.0,0.5198093]
[1744762523825,0.08547987,83404.0,83403.0,0.5667093]
[1744762525818,0.08547987,83404.0,83403.0,0.5567093]
[1744762526920,0.20538777,83404.0,83403.0,0.4817093]
[1744762527416,0.20538777,83404.0,83403.0,0.4817893]
[1744762528909,0.08547987,83404.0,83403.0,0.4817893]
[1744762529109,0.08547987,83404.0,83403.0,0.5202893]
[1744762529316,0.08547987,83404.0,83403.0,0.5574893]
[1744762530216,0.005,83422.0,83403.0,0.59758]
[1744762530420,0.0375,83412.0,83411.0,0.1198978]
[1744762532308,0.0505,83412.0,83411.0,0.1208978]
[1744762532518,0.5311964,83412.0,83411.0,0.001]
[1744762532822,0.1199251,83392.0,83391.0,0.00026572]
[1744762533020,0.1199294,83389.0,83386.0,0.00026572]
[1744762533226,0.1199529,83373.0,83368.0,0.18342373]
[1744762533416,0.0732,83372.0,83371.0,0.0001458]
[1744762533612,0.1096,83372.0,83371.0,0.0001458]
[1744762533813,0.1096,83372.0,83371.0,0.1201011]
[1744762535636,0.1106,83372.0,83371.0,0.1331011]
[1744762536121,0.1106,83372.0,83371.0,0.1281011]
[1744762536417,0.2295539,83372.0,83371.0,0.1251011]
[1744762537225,0.1096,83372.0,83371.0,0.1251011]
[1744762538010,0.1096,83372.0,83371.0,0.1201011]
[1744762538215,0.1096,83372.0,83371.0,0.1231011]
[1744762538519,0.0364,83372.0,83371.0,0.1231011]
[1744762539023,0.0364,83372.0,83371.0,0.1952011]
[1744762539610,0.03647987,83380.0,83379.0,0.1199438]
[1744762539814,0.00017987,83380.0,83379.0,0.4807438]
[1744762540814,0.12212227,83380.0,83379.0,0.4807438]
[1744762541016,0.12212227,83380.0,83379.0,0.5529438]
[1744762541209,0.00217987,83380.0,83379.0,0.5529438]
[1744762541413,0.03897987,83380.0,83379.0,0.5529438]
[1744762541614,0.15892227,83380.0,83379.0,0.3618]
[1744762542113,0.19562227,83380.0,83379.0,0.4817438]
[1744762542313,0.07567987,83380.0,83379.0,0.4807438]
[1744762542513,0.07567987,83380.0,83379.0,0.4838238]
[1744762542913,0.07567987,83380.0,83379.0,0.5598238]
[1744762543119,0.03897987,83380.0,83379.0,0.5598238]
[1744762544220,0.03697987,83380.0,83379.0,0.5588238]
[1744762544420,0.03697987,83380.0,83379.0,0.5598238]
[1744762544818,0.03697987,83380.0,83379.0,0.5568238]
[1744762545018,0.03697987,83380.0,83379.0,0.5608238]
[1744762545628,0.03697987,83380.0,83379.0,0.2000238]
[1744762545822,0.15692227,83380.0,83379.0,0.00108]
[1744762546024,0.15692227,83380.0,83379.0,0.1250238]
[1744762546220,0.15692227,83380.0,83379.0,0.005]
[1744762546521,0.15692227,83380.0,83379.0,0.00508]
[1744762546724,0.15692227,83380.0,83379.0,0.005]
[1744762547426,0.15692227,83380.0,83379.0,0.00508]
[1744762548013,0.15792227,83380.0,83379.0,0.00308]
[1744762548218,0.1799211,83378.0,83377.0,0.119946]
[1744762548413,0.1199481,83376.0,83375.0,0.0599747]
[1744762549525,0.1929481,83376.0,83375.0,0.0599747]
[1744762550423,0.11995,83375.0,83373.0,0.1200594]
[1744762550637,0.119951,83374.0,83373.0,0.000108]
[1744762550820,0.158951,83374.0,83373.0,0.000108]
[1744762551021,0.16795351,83374.0,83373.0,0.000108]
[1744762551323,0.1199596,83368.0,83367.0,0.12511869]
[1744762551529,0.12896211,83368.0,83367.0,0.12511869]
[1744762551725,0.00900251,83368.0,83367.0,0.48591869]
[1744762551919,0.20636211,83368.0,83367.0,0.48591869]
[1744762552232,0.08640251,83368.0,83367.0,0.48591869]
[1744762552430,0.20636211,83368.0,83367.0,0.55931869]
[1744762552925,0.08640251,83368.0,83367.0,0.55931869]
[1744762553131,0.04800251,83368.0,83367.0,0.55931869]
[1744762553326,0.001,83374.0,83373.0,0.1199525]
[1744762553626,0.0363,83374.0,83373.0,0.1199525]
[1744762553928,0.0363,83374.0,83373.0,0.1936525]
[1744762554429,0.0353,83374.0,83373.0,0.1936525]
[1744762555025,0.0363,83374.0,83373.0,0.1956525]
[1744762555726,0.0363,83374.0,83373.0,0.2056525]
[1744762556025,0.156251,83374.0,83373.0,0.2056525]
[1744762556529,0.0363,83374.0,83373.0,0.2056525]
[1744762556921,0.156251,83374.0,83373.0,0.2056525]
[1744762557120,0.0363,83374.0,83373.0,0.2056525]
[1744762559026,0.0754,83374.0,83373.0,0.2056525]
[1744762559831,0.0754,83374.0,83373.0,0.1956525]
[1744762560827,0.195351,83374.0,83373.0,0.002]
[1744762561323,0.195351,83374.0,83373.0,0.00208]
[1744762564232,0.195351,83374.0,83373.0,0.002]
[1744762564432,0.195351,83374.0,83373.0,0.00208]
[1744762564628,0.195351,83374.0,83373.0,0.002]
[1744762564832,0.195351,83374.0,83373.0,0.00208]
[1744762565520,0.2048107,83374.0,83373.0,0.00208]
[1744762566227,0.1199683,83362.0,83357.0,0.00019683]
[1744762566430,0.129428,83362.0,83357.0,0.06018433]
[1744762566632,0.119974,83358.0,83357.0,0.0599875]
[1744762567023,0.1294337,83358.0,83357.0,0.0599875]
[1744762568337,0.1294337,83358.0,83357.0,0.0679875]
[1744762568630,0.1294337,83358.0,83357.0,0.008]
[1744762568934,0.1294337,83358.0,83357.0,0.007]
[1744762568935,0.21783939,83358.0,83357.0,0.007]
[1744762570640,0.21783939,83358.0,83357.0,0.005]
[1744762574337,0.21783939,83358.0,83357.0,0.00508]
[1744762574636,0.1199841,83351.0,83350.0,0.0384]
[1744762575037,0.1199856,83350.0,83349.0,0.000108]
[1744762575336,0.1199913,83346.0,83345.0,0.3609458]
[1744762575736,0.1199913,83346.0,83345.0,0.3608]
[1744762575939,0.129451,83346.0,83345.0,0.36088]
[1744762576135,0.165851,83346.0,83345.0,0.36088]
[1744762576638,0.204251,83346.0,83345.0,0.36088]
[1744762577040,0.204251,83346.0,83345.0,0.39728]
[1744762577431,0.205251,83346.0,83345.0,0.40328]
[1744762578141,0.169851,83346.0,83345.0,0.5232728]
[1744762578335,0.0599942,83348.0,83347.0,0.1199899]
[1744762580343,0.0609942,83348.0,83347.0,0.1229899]
[1744762580544,0.0609942,83348.0,83347.0,0.1289899]
[1744762582047,0.0609942,83348.0,83347.0,0.4897899]
[1744762582242,0.0609942,83348.0,83347.0,0.3698]
[1744762582939,0.1293942,83348.0,83347.0,0.3698]
[1744762583538,0.1293942,83348.0,83347.0,0.36988]
[1744762583938,0.1293942,83348.0,83347.0,0.4898699]
[1744762584239,0.1293942,83348.0,83347.0,0.36988]
[1744762589540,0.1293942,83348.0,83347.0,0.00908]
[1744762589738,0.1639942,83348.0,83347.0,0.00908]
[1744762590537,0.04481251,83348.0,83347.0,0.1290699]
[1744762590743,0.16480091,83348.0,83347.0,0.1290699]
[1744762590934,0.16480091,83348.0,83347.0,0.00908]
[1744762591445,0.16480091,83348.0,83347.0,0.1986699]
[1744762591631,0.16480091,83348.0,83347.0,0.07868]
[1744762592032,0.23470091,83348.0,83347.0,0.07868]
[1744762592640,0.20010091,83348.0,83347.0,0.07868]
[1744762592839,0.16480091,83348.0,83347.0,0.07868]
[1744762595141,0.13050091,83348.0,83347.0,0.1986699]
[1744762595742,0.13050091,83348.0,83347.0,0.07868]
[1744762595937,0.16360091,83348.0,83347.0,0.07868]
[1744762598642,0.13050091,83348.0,83347.0,0.1986699]
[1744762599344,0.16490091,83348.0,83347.0,0.1986699]
[1744762599535,0.16490091,83348.0,83347.0,0.2086699]
[1744762600446,0.16490091,83348.0,83347.0,0.1986699]
[1744762600838,0.16490091,83348.0,83347.0,0.07868]
[1744762601447,0.23160091,83348.0,83347.0,0.1986699]
[1744762604044,0.23160091,83348.0,83347.0,0.04398]
[1744762604446,0.23160091,83348.0,83347.0,0.07998]
[1744762604636,0.23160091,83348.0,83347.0,0.1999699]
[1744762605042,0.23160091,83348.0,83347.0,0.1639699]
[1744762605438,0.23160091,83348.0,83347.0,0.00908]
[1744762605646,0.23160091,83348.0,83347.0,0.009]
[1744762606251,0.23160091,83348.0,83347.0,0.1289899]
[1744762606451,0.23160091,83348.0,83347.0,0.00908]
[1744762609753,0.23160091,83348.0,83347.0,0.009]
[1744762610051,0.23160091,83348.0,83347.0,0.00908]
[1744762613551,0.23160091,83348.0,83347.0,0.1290699]
[1744762615051,0.23160091,83348.0,83347.0,0.1652699]
[1744762615454,0.23160091,83348.0,83347.0,0.1983699]
[1744762615652,0.23160091,83348.0,83347.0,0.07838]
[1744762615951,0.23160091,83348.0,83347.0,0.1983699]
[1744762618657,0.23160091,83348.0,83347.0,0.07838]
[1744762618855,0.2220884,83348.0,83347.0,0.07838]
[1744762619059,0.2220884,83348.0,83347.0,0.04528]
[1744762619258,0.2220884,83348.0,83347.0,0.1652699]
[1744762619750,0.23111525,83348.0,83347.0,0.1652699]
[1744762621246,0.23111525,83348.0,83347.0,0.1999699]
[1744762622857,0.19731525,83348.0,83347.0,0.1999699]
[1744762623648,0.04442685,83348.0,83347.0,0.2099699]
[1744762623957,0.3608,83360.0,83356.0,0.1199769]
[1744762623958,0.1555755,83357.0,83356.0,0.1199769]
[1744762624259,0.1914755,83357.0,83356.0,0.1199769]
[1744762624649,0.1914755,83357.0,83356.0,0.0347]
[1744762624851,0.1914755,83357.0,83356.0,0.1546769]
[1744762625459,0.2278755,83357.0,83356.0,0.1576769]
[1744762625852,0.0858,83376.0,83360.0,0.0599854]
[1744762626046,0.2163524,83363.0,83362.0,0.1799483]
[1744762626252,0.2163524,83363.0,83362.0,0.5739483]
[1744762626450,0.0963841,83363.0,83362.0,0.6086483]
[1744762627047,0.0963841,83363.0,83362.0,0.4886837]
[1744762627249,0.1319841,83363.0,83362.0,0.4886837]
[1744762627754,0.1319841,83363.0,83362.0,0.4986837]
[1744762627955,0.1319841,83363.0,83362.0,0.4886837]
[1744762628546,0.1319841,83363.0,83362.0,0.4896837]
[1744762628547,0.0364,83363.0,83362.0,0.4896837]
[1744762628755,0.0364,83363.0,83362.0,0.4996837]
[1744762629454,0.0364,83363.0,83362.0,0.5026837]
[1744762631065,0.20512327,83390.0,83370.0,0.1199568]
[1744762631365,0.01205403,83372.0,83370.0,0.4807568]
[1744762631550,0.15383517,83371.0,83370.0,0.3608]
[1744762631751,0.15383517,83371.0,83370.0,0.36088]
[1744762632461,0.18873517,83371.0,83370.0,0.36088]
[1744762632665,0.18873517,83371.0,83370.0,0.3618]
[1744762632870,0.18873517,83371.0,83370.0,0.00108]
[1744762633557,0.18873517,83371.0,83370.0,0.001]
[1744762633859,0.18873517,83371.0,83370.0,0.00108]
[1744762635063,0.06877987,83371.0,83370.0,0.00108]
[1744762635371,0.18873517,83371.0,83370.0,0.00108]
[1744762636166,0.54953517,83371.0,83370.0,0.00108]
[1744762636566,0.54953517,83371.0,83370.0,0.001]
[1744762636867,0.54953517,83371.0,83370.0,0.1210368]
[1744762637062,0.18873517,83371.0,83370.0,0.00108]
[1744762637369,0.18873517,83371.0,83370.0,0.4818368]
[1744762637767,0.18873517,83371.0,83370.0,0.36188]
[1744762638964,0.03507987,83371.0,83370.0,0.4818368]
[1744762639370,0.15503517,83371.0,83370.0,0.5877368]
[1744762639571,0.15503517,83371.0,83370.0,0.5179368]
[1744762639763,0.18813517,83371.0,83370.0,0.39798]
[1744762639963,0.18813517,83371.0,83370.0,0.36188]
[1744762640164,0.18813517,83371.0,83370.0,0.4818368]
[1744762640364,0.18813517,83371.0,83370.0,0.5179368]
[1744762641173,0.18813517,83371.0,83370.0,0.39798]
[1744762641873,0.06817987,83371.0,83370.0,0.5179368]
[1744762642067,0.03507987,83371.0,83370.0,0.5179368]
[1744762642267,0.03507987,83371.0,83370.0,0.5855368]
[1744762642674,0.15503517,83371.0,83370.0,0.5855368]
[1744762642968,0.15503517,83371.0,83370.0,0.46558]
[1744762643173,0.15503517,83371.0,83370.0,0.43198]
[1744762643379,0.19003517,83371.0,83370.0,0.5519368]
[1744762644074,0.19003517,83371.0,83370.0,0.3618]
[1744762644271,0.19003517,83371.0,83370.0,0.4818368]
[1744762644672,0.19003517,83371.0,83370.0,0.5502368]
[1744762644872,0.07007987,83371.0,83370.0,0.5502368]
[1744762645175,0.03507987,83371.0,83370.0,0.5502368]
[1744762646076,0.15503517,83371.0,83370.0,0.5502368]
[1744762646375,0.15503517,83371.0,83370.0,0.5602368]
[1744762646574,0.03507987,83371.0,83370.0,0.5602368]
[1744762646770,0.03507987,83371.0,83370.0,0.5502368]
[1744762646970,0.00117987,83371.0,83370.0,0.5502368]
[1744762647171,0.12113517,83371.0,83370.0,0.5502368]
[1744762647570,0.00117987,83371.0,83370.0,0.5502368]
[1744762647774,0.3608,83394.0,83375.0,0.1199496]
[1744762648069,0.0362,83379.0,83378.0,0.1199453]
[1744762648270,0.0362,83393.0,83392.0,0.1199251]
[1744762648462,0.1561237,83393.0,83392.0,0.4907251]
[1744762649063,0.1561237,83393.0,83392.0,0.5491251]
[1744762649770,0.1601237,83393.0,83392.0,0.5491251]
[1744762651670,0.0382,83393.0,83392.0,0.5491251]
[1744762653375,0.1581237,83393.0,83392.0,0.5491251]
[1744762654172,0.1581237,83393.0,83392.0,0.5143251]
[1744762654675,0.0382,83393.0,83392.0,0.5143251]
[1744762655566,0.002,83393.0,83392.0,0.5698251]
[1744762656170,0.1219237,83393.0,83392.0,0.5498251]
[1744762656366,0.002,83393.0,83392.0,0.5498251]
[1744762656579,0.0366,83393.0,83392.0,0.5498251]
[1744762659476,0.0366,83393.0,83392.0,0.5598251]
[1744762659670,0.002,83393.0,83392.0,0.5598251]
[1744762664769,0.0696,83393.0,83392.0,0.5598251]
[1744762667386,0.2233237,83393.0,83392.0,0.3708]
[1744762667584,0.0599659,83388.0,83387.0,0.00019683]
[1744762668176,0.1291659,83388.0,83387.0,0.00019683]
[1744762668379,0.1291659,83388.0,83386.0,0.00026572]
[1744762668579,0.1199352,83385.0,83373.0,0.3608]
[1744762668883,0.0599747,83376.0,83369.0,0.0001458]
[1744762669080,0.3202,83388.0,83361.0,0.18368945]
[1744762669081,0.1199683,83362.0,83361.0,0.18368945]
[1744762669483,0.3699683,83362.0,83361.0,0.18368945]
[1744762669781,0.1199755,83357.0,83356.0,0.24414941]
[1744762670690,0.1531755,83357.0,83356.0,0.24414941]
[1744762670986,0.1531755,83357.0,83356.0,0.24422941]
[1744762671384,0.1531755,83357.0,83356.0,0.24822941]
[1744762671987,0.1531755,83357.0,83356.0,0.25122941]
[1744762672287,0.1877755,83357.0,83356.0,0.25114941]
[1744762672487,0.1877755,83357.0,83356.0,0.00708]
[1744762672782,0.20286207,83357.0,83356.0,0.00708]
[1744762673492,0.20286207,83357.0,83356.0,0.00608]
[1744762673682,0.20286207,83357.0,83356.0,0.00308]
[1744762673882,0.20286207,83357.0,83356.0,0.00508]
[1744762676183,0.08288657,83357.0,83356.0,0.1250569]
[1744762676387,0.20286207,83357.0,83356.0,0.1250569]
[1744762676590,0.20286207,83357.0,83356.0,0.00508]
[1744762678688,0.0678,83357.0,83356.0,0.1250569]
[1744762678886,0.0332,83357.0,83356.0,0.1250569]
[1744762679088,0.0332,83357.0,83356.0,0.1947569]
[1744762681989,0.12013667,83370.0,83369.0,0.1199582]
[1744762682192,0.12013667,83370.0,83369.0,0.4807582]
[1744762682487,0.00017987,83370.0,83369.0,0.4807582]
[1744762682682,0.00017987,83370.0,83369.0,0.5256582]
[1744762683489,0.00217987,83370.0,83369.0,0.9212582]
[1744762684287,0.00217987,83370.0,83369.0,0.9222582]
[1744762684585,0.00217987,83370.0,83369.0,0.9122582]
[1744762684586,0.19083667,83370.0,83369.0,0.9122582]
[1744762684788,0.07087987,83370.0,83369.0,0.9123382]
[1744762685886,0.19083667,83370.0,83369.0,0.36188]
[1744762686091,0.19083667,83370.0,83369.0,0.00108]
[1744762686285,0.55163667,83370.0,83369.0,0.00108]
[1744762686784,0.19083667,83370.0,83369.0,0.001]
[1744762687091,0.19083667,83370.0,83369.0,0.00108]
[1744762687285,0.19083667,83370.0,83369.0,0.001]
[1744762687491,0.19083667,83370.0,83369.0,0.00108]
[1744762688186,0.19083667,83370.0,83369.0,0.1210382]
[1744762688392,0.07087987,83370.0,83369.0,0.1210382]
[1744762688588,0.03557987,83370.0,83369.0,0.4818382]
[1744762688985,0.15553667,83370.0,83369.0,0.5504382]
[1744762689294,0.15553667,83370.0,83369.0,0.1210382]
[1744762689595,0.15553667,83370.0,83369.0,0.00108]
[1744762689790,0.15553667,83370.0,83369.0,0.1210382]
[1744762690793,0.15553667,83370.0,83369.0,0.00108]
[1744762690994,0.15553667,83370.0,83369.0,0.1210382]
[1744762691689,0.03557987,83370.0,83369.0,0.1210382]
[1744762692293,0.15553667,83370.0,83369.0,0.1892382]
[1744762692492,0.15553667,83370.0,83369.0,0.06928]
[1744762692691,0.15553667,83370.0,83369.0,0.00108]
[1744762693088,0.18943667,83370.0,83369.0,0.00108]
[1744762694189,0.18943667,83370.0,83369.0,0.001]
[1744762694387,0.18943667,83370.0,83369.0,0.00108]
[1744762696094,0.18943667,83370.0,83369.0,0.001]
[1744762696290,0.18943667,83370.0,83369.0,0.00108]
[1744762699491,0.19841942,83370.0,83369.0,0.00108]
[1744762707613,0.0599831,83364.0,83348.0,0.2063878]
[1744762707792,0.1199798,83354.0,83353.0,0.03387987]
[1744762708213,0.12896255,83354.0,83353.0,0.03387987]
[1744762709110,0.12896255,83354.0,83353.0,0.03687987]
[1744762709399,0.19846255,83354.0,83353.0,0.03787987]
[1744762710408,0.19846255,83354.0,83353.0,0.03987987]
[1744762712508,0.19846255,83354.0,83353.0,0.00617987]
[1744762713201,0.16526255,83354.0,83353.0,0.00617987]
[1744762713406,0.16526255,83354.0,83353.0,0.00625987]
[1744762714005,0.16526255,83354.0,83353.0,0.00025987]
[1744762714304,0.16526255,83354.0,83353.0,0.00325987]
[1744762715210,0.00898275,83354.0,83353.0,0.12324107]
[1744762715410,0.00898275,83354.0,83353.0,0.19614107]
[1744762716203,0.1199798,83354.0,83353.0,0.25613097]
[1744762716613,0.1199798,83354.0,83353.0,0.13614977]
[1744762716808,0.1199798,83354.0,83353.0,0.07615987]
[1744762717114,0.1199798,83354.0,83353.0,0.07607987]
[1744762717315,0.12934324,83354.0,83353.0,0.07615987]
[1744762717504,0.16474324,83354.0,83353.0,0.07615987]
[1744762718416,0.12934324,83354.0,83353.0,0.19614107]
[1744762722413,0.12934324,83354.0,83353.0,0.07615987]
[1744762722615,0.12934324,83354.0,83353.0,0.19614107]
[1744762723229,0.16564324,83354.0,83353.0,0.19614107]
[1744762723718,0.12934324,83354.0,83353.0,0.19614107]
[1744762724206,0.12934324,83354.0,83353.0,0.07615987]
[1744762724412,0.16424324,83354.0,83353.0,0.07615987]
[1744762724922,0.12934324,83354.0,83353.0,0.07615987]
[1744762725221,0.12934324,83354.0,83353.0,0.19614107]
[1744762727024,0.12934324,83354.0,83353.0,0.07615987]
[1744762727620,0.16314324,83354.0,83353.0,0.07615987]
[1744762729622,0.16314324,83354.0,83353.0,0.19614107]
[1744762730013,0.16314324,83354.0,83353.0,0.07615987]
[1744762730626,0.16314324,83354.0,83353.0,0.19614107]
[1744762730818,0.16314324,83354.0,83353.0,0.07615987]
[1744762731326,0.16314324,83354.0,83353.0,0.19614107]
[1744762731623,0.16314324,83354.0,83353.0,0.00325987]
[1744762731824,0.23414324,83354.0,83353.0,0.00325987]
[1744762732225,0.23414324,83354.0,83353.0,0.00317987]
[1744762732425,0.23414324,83354.0,83353.0,0.00325987]
[1744762737829,0.59494324,83354.0,83353.0,0.00325987]
[1744762738131,0.59494324,83354.0,83353.0,0.00317987]
[1744762738431,0.23414324,83354.0,83353.0,0.00325987]
[1744762741921,0.0599933,83350.0,83342.0,0.0001458]
[1744762742120,0.1199971,83342.0,83324.0,0.3608]
[1744762742335,0.1199971,83342.0,83330.0,0.00887056]
[1744762742527,0.2239971,83342.0,83341.0,0.00523949]
[1744762742724,0.0600052,83333.0,83324.0,0.3608]
[1744762743030,0.1200216,83325.0,83324.0,0.3608]
[1744762743426,0.1200216,83325.0,83324.0,0.36088]
[1744762743728,0.12938504,83325.0,83324.0,0.3608]
[1744762743930,0.12938504,83325.0,83324.0,0.36088]
[1744762744132,0.12938504,83325.0,83324.0,0.3618]
[1744762744427,0.12938504,83325.0,83324.0,0.36188]
[1744762744630,0.12938504,83325.0,83324.0,0.3618]
[1744762745225,0.00936344,83325.0,83324.0,0.481823]
[1744762745421,0.00936344,83325.0,83324.0,0.481903]
[1744762745622,0.12938504,83325.0,83324.0,0.36388]
[1744762746224,0.12938504,83325.0,83324.0,0.39948]
[1744762747428,0.12938504,83325.0,83324.0,0.36388]
[1744762748022,0.00936344,83325.0,83324.0,0.483903]
[1744762748427,0.12938504,83325.0,83324.0,0.483903]
[1744762748733,0.12938504,83325.0,83324.0,0.517103]
[1744762749526,0.00936344,83325.0,83324.0,0.517103]
[1744762749831,0.00936344,83325.0,83324.0,0.527103]
[1744762750230,0.00936344,83325.0,83324.0,1.467103]
[1744762750734,0.12938504,83325.0,83324.0,1.34708]
[1744762750932,0.1200216,83325.0,83324.0,0.36388]
[1744762751635,0.1876216,83325.0,83324.0,0.36388]
[1744762751825,0.19698504,83325.0,83324.0,0.3638]
[1744762752024,0.19698504,83325.0,83324.0,0.36388]
[1744762752232,0.19698504,83325.0,83324.0,0.3638]
[1744762752431,0.19698504,83325.0,83324.0,0.36388]
[1744762755937,0.19698504,83325.0,83324.0,0.483903]
[1744762756934,0.16338504,83325.0,83324.0,0.483903]
[1744762757733,0.19878504,83325.0,83324.0,0.483903]
[1744762760333,0.04336344,83325.0,83324.0,0.483903]
[1744762760536,0.16338504,83325.0,83324.0,0.550303]
[1744762761035,0.04336344,83325.0,83324.0,0.550303]
[1744762761238,0.16338504,83325.0,83324.0,0.550303]
[1744762763336,0.16338504,83325.0,83324.0,0.518503]
[1744762763544,0.16338504,83325.0,83324.0,0.36388]
[1744762764042,0.16338504,83325.0,83324.0,0.483903]
[1744762764241,0.16338504,83325.0,83324.0,0.3638]
[1744762764545,0.16338504,83325.0,83324.0,0.36388]
[1744762765133,0.16338504,83325.0,83324.0,0.3638]
[1744762765347,0.16338504,83325.0,83324.0,0.36388]
[1744762765943,0.16338504,83325.0,83324.0,0.483903]
[1744762768835,0.04336344,83325.0,83324.0,0.483903]
[1744762769034,0.04336344,83325.0,83324.0,0.518303]
[1744762769243,0.16338504,83325.0,83324.0,0.585603]
[1744762769444,0.16338504,83325.0,83324.0,0.551203]
[1744762771345,0.16338504,83325.0,83324.0,0.483903]
[1744762771541,0.16338504,83325.0,83324.0,0.36388]
[1744762771743,0.16338504,83325.0,83324.0,0.3638]
[1744762772447,0.16338504,83325.0,83324.0,0.36388]
[1744762774549,0.16338504,83325.0,83324.0,0.483903]
[1744762777635,0.16338504,83325.0,83324.0,0.36388]
[1744762778235,0.16338504,83325.0,83324.0,0.3638]
[1744762778435,0.16338504,83325.0,83324.0,0.36388]
[1744762779643,0.16338504,83325.0,83324.0,0.43088]
[1744762781537,0.31469576,83325.0,83324.0,0.43088]
[1744762781943,0.31469576,83325.0,83324.0,0.550903]
[1744762785238,0.28069576,83325.0,83324.0,0.550903]
[1744762785444,0.12938504,83325.0,83324.0,0.46378]
[1744762785645,0.16298504,83325.0,83324.0,0.46378]
[1744762787358,0.16298504,83325.0,83324.0,0.43088]
[1744762787554,0.19568504,83325.0,83324.0,0.36388]
[1744762788257,0.19568504,83325.0,83324.0,0.3638]
[1744762788457,0.19568504,83325.0,83324.0,0.36388]
[1744762788658,0.19568504,83325.0,83324.0,0.36088]
[1744762788846,0.19568504,83325.0,83324.0,0.36288]
[1744762789049,0.19568504,83325.0,83324.0,0.36488]
[1744762789257,0.19568504,83325.0,83324.0,0.36288]
[1744762789552,0.19568504,83325.0,83324.0,0.36488]
[1744762793953,0.28217026,83325.0,83324.0,0.36488]
[1744762797257,0.28217026,83325.0,83324.0,0.00408]
[1744762797658,0.37736224,83325.0,83324.0,0.004]
[1744762797858,0.1200331,83317.0,83316.0,0.000108]
[1744762798057,0.1200331,83317.0,83316.0,0.033708]
[1744762798760,0.1869331,83317.0,83316.0,0.033708]
[1744762798966,0.19629654,83317.0,83316.0,0.033708]
[1744762799364,0.20229654,83317.0,83316.0,0.034708]
[1744762799563,0.20229654,83317.0,83316.0,0.02344712]
[1744762800262,0.20229654,83317.0,83316.0,0.001]
[1744762801162,0.38597374,83317.0,83316.0,0.001]
[1744762801861,0.40013029,83317.0,83316.0,0.001]
[1744762803968,0.40013029,83317.0,83316.0,0.00108]
[1744762804164,0.40013029,83317.0,83316.0,0.001]
[1744762804365,0.40013029,83317.0,83316.0,0.00108]
[1744762804661,0.40013029,83317.0,83316.0,0.001]
[1744762804861,0.21845309,83317.0,83316.0,0.001]
[1744762805572,0.1200345,83316.0,83315.0,0.35577994]
[1744762806071,0.1868345,83316.0,83315.0,0.35577994]
[1744762806268,0.19619794,83316.0,83315.0,0.35577994]
[1744762806465,0.1200446,83309.0,83308.0,0.000108]
[1744762806659,0.1200475,83307.0,83306.0,0.3608]
[1744762806866,0.12941094,83307.0,83306.0,0.3608]
[1744762807267,0.16271094,83307.0,83306.0,0.3608]
[1744762807465,0.23111094,83307.0,83306.0,0.3608]
[1744762808364,0.23111094,83307.0,83306.0,0.36088]
[1744762809375,0.23511094,83307.0,83306.0,0.36088]
[1744762809565,0.1200561,83301.0,83300.0,0.1]
[1744762809965,0.12941954,83301.0,83300.0,0.1]
[1744762810370,0.16111954,83301.0,83300.0,0.1]
[1744762810576,0.0600323,83296.0,83290.0,0.3608]
[1744762810779,0.1200705,83291.0,83290.0,0.3708]
[1744762810972,0.1200705,83291.0,83290.0,0.524372]
[1744762811273,0.120072,83290.0,83286.0,0.000108]
[1744762811471,0.120072,83290.0,83286.0,0.0601468]
[1744762811667,0.12943544,83290.0,83289.0,0.12523612]
[1744762811868,0.12943544,83290.0,83289.0,0.12531612]
[1744762813074,0.12943544,83290.0,83289.0,0.12731612]
[1744762813866,0.12943544,83290.0,83289.0,0.12931612]
[1744762814469,0.16153544,83290.0,83289.0,0.12931612]
[1744762819675,0.16153544,83290.0,83289.0,0.00924272]
[1744762819881,0.19463544,83290.0,83289.0,0.00924272]
[1744762820077,0.19463544,83290.0,83289.0,0.12931612]
[1744762820279,0.19463544,83290.0,83289.0,0.16081612]
[1744762822080,0.19463544,83290.0,83289.0,0.12931612]
[1744762822381,0.0600533,83268.0,83267.0,0.1801505]
[1744762822579,0.0600533,83268.0,83267.0,0.3233505]
[1744762822774,0.0600533,83268.0,83267.0,0.383403]
[1744762822973,0.0600533,83268.0,83267.0,0.383483]
[1744762823178,0.0600533,83268.0,83267.0,0.263385]
[1744762823378,0.06941674,83268.0,83267.0,0.263385]
[1744762823575,0.10171674,83268.0,83267.0,0.268385]
[1744762823781,0.10171674,83268.0,83267.0,0.27721164]
[1744762824186,0.00936344,83268.0,83267.0,0.27721164]
[1744762824482,0.1201037,83268.0,83267.0,0.39731394]
[1744762824688,0.1201037,83268.0,83267.0,0.24401164]
[1744762824882,0.1555037,83268.0,83267.0,0.24401164]
[1744762825185,0.16486714,83268.0,83267.0,0.24401164]
[1744762826289,0.00936344,83268.0,83267.0,0.24401164]
[1744762826774,0.00936344,83268.0,83267.0,1.18401164]
[1744762827579,0.12946714,83268.0,83267.0,1.18401164]
[1744762827782,0.12946714,83268.0,83267.0,1.18393164]
[1744762827975,0.00936344,83268.0,83267.0,1.18401164]
[1744762830487,0.00936344,83268.0,83267.0,1.19401164]
[1744762830691,0.1816772,83306.0,83285.0,0.1200792]
[1744762830890,0.0347,83289.0,83285.0,0.1300792]